[Event "*** Titled Tuesday Blitz"]
[Site "Chess.com"]
[Date "2021.03.16"]
[Round "6"]
[White "lukazz029"]
[Black "Ural_bogatyr"]
[Result "0-1"]
[WhiteElo "2232"]
[BlackElo "2502"]
[TimeControl "180+1"]
[EndTime "11:03:11 PDT"]
[Termination "Ural_bogatyr won by resignation"]

1. e4 {[%clk 0:03:00.9]} 1... e5 {[%clk 0:02:58.5]} 2. Nf3 {[%clk 0:02:58.2]}
2... Nc6 {[%clk 0:02:58.7]} 3. Bb5 {[%clk 0:02:57.7]} 3... Bc5 {[%clk
0:02:58.9]} 4. O-O {[%clk 0:02:57.9]} 4... Nf6 {[%clk 0:02:58.5]} 5. d3 {[%clk
0:02:58.2]} 5... d6 {[%clk 0:02:57.8]} 6. Ba4 {[%clk 0:02:58.7]} 6... O-O {[%clk
0:02:57.3]} 7. c3 {[%clk 0:02:58.9]} 7... Bb6 {[%clk 0:02:57.5]} 8. h3 {[%clk
0:02:58.1]} 8... Ne7 {[%clk 0:02:57.5]} 9. Nbd2 {[%clk 0:02:55.3]} 9... c6
{[%clk 0:02:57.3]} 10. Nc4 {[%clk 0:02:52.8]} 10... Bc7 {[%clk 0:02:57.6]} 11.
Ne3 {[%clk 0:02:53.4]} 11... Ng6 {[%clk 0:02:55.4]} 12. Bc2 {[%clk 0:02:53.2]}
12... d5 {[%clk 0:02:53.8]} 13. Qe2 {[%clk 0:02:52.2]} 13... Nf4 {[%clk
0:02:51.7]} 14. Qe1 {[%clk 0:02:49.7]} 14... N6h5 {[%clk 0:02:49]} 15. Ng4
{[%clk 0:02:43.3]} 15... f5 {[%clk 0:02:28.5]} 16. exf5 {[%clk 0:02:41.5]} 16...
Bxf5 {[%clk 0:02:21.7]} 17. Bxf4 {[%clk 0:02:20.6]} 17... Nxf4 {[%clk
0:02:19.2]} 18. Rc1 {[%clk 0:02:19.1]} 18... Nxh3+ {[%clk 0:01:42.5]} 19. gxh3
{[%clk 0:02:10.7]} 19... Bxg4 {[%clk 0:01:42.2]} 20. hxg4 {[%clk 0:02:11.2]}
20... Rxf3 {[%clk 0:01:41.6]} 21. Bd1 {[%clk 0:02:11.8]} 21... Qh4 {[%clk
0:01:28.9]} 22. Bxf3 {[%clk 0:01:34.5]} 22... e4 {[%clk 0:01:28.6]} 0-1

[Event "*** Titled Tuesday Blitz"]
[Site "Chess.com"]
[Date "2021.03.16"]
[Round "6"]
[White "GigaQuparadze"]
[Black "Agnes66678"]
[Result "1-0"]
[WhiteElo "2932"]
[BlackElo "2450"]
[TimeControl "180+1"]
[EndTime "11:03:14 PDT"]
[Termination "GigaQuparadze won by resignation"]

1. e4 {[%clk 0:03:00.9]} 1... d6 {[%clk 0:02:55.6]} 2. Nc3 {[%clk 0:03:00.5]}
2... Nf6 {[%clk 0:02:55.8]} 3. d4 {[%clk 0:03:00.5]} 3... e5 {[%clk 0:02:55.1]}
4. Nf3 {[%clk 0:03:00.5]} 4... Nbd7 {[%clk 0:02:54.8]} 5. Bc4 {[%clk 0:03:00.2]}
5... Be7 {[%clk 0:02:54.8]} 6. g4 {[%clk 0:03:00.6]} 6... Nxg4 {[%clk
0:02:53.9]} 7. Rg1 {[%clk 0:03:00.4]} 7... Nb6 {[%clk 0:02:43.9]} 8. Bb3 {[%clk
0:02:58]} 8... exd4 {[%clk 0:02:34.4]} 9. Nxd4 {[%clk 0:02:48.5]} 9... Bf6
{[%clk 0:02:33.5]} 10. Nf5 {[%clk 0:02:28.1]} 10... Bxf5 {[%clk 0:02:17.5]} 11.
exf5 {[%clk 0:02:29]} 11... Qe7+ {[%clk 0:02:12.4]} 12. Kf1 {[%clk 0:02:28.7]}
12... h5 {[%clk 0:01:47.3]} 13. h3 {[%clk 0:02:25.8]} 13... Ne5 {[%clk
0:01:40.5]} 14. a4 {[%clk 0:02:25.6]} 14... a5 {[%clk 0:01:37.2]} 15. Be3 {[%clk
0:02:24.8]} 15... Nec4 {[%clk 0:01:27.4]} 16. Bxc4 {[%clk 0:02:22.8]} 16... Nxc4
{[%clk 0:01:28.3]} 17. Nd5 {[%clk 0:02:23.2]} 17... Nxe3+ {[%clk 0:01:23.4]} 18.
fxe3 {[%clk 0:02:21.6]} 18... Qd7 {[%clk 0:01:13.5]} 19. e4 {[%clk 0:02:15.2]}
19... Be5 {[%clk 0:01:07.5]} 20. Qd2 {[%clk 0:02:12.4]} 20... b6 {[%clk
0:01:04.5]} 21. c3 {[%clk 0:02:10.9]} 21... h4 {[%clk 0:01:00.5]} 22. Rg4 {[%clk
0:02:09.3]} 22... Qc6 {[%clk 0:00:54]} 23. Kg2 {[%clk 0:02:08.1]} 23... O-O-O
{[%clk 0:00:51]} 24. Ne7+ {[%clk 0:02:07.3]} 24... Kb7 {[%clk 0:00:49.8]} 25.
Nxc6 {[%clk 0:02:08.2]} 25... Kxc6 {[%clk 0:00:50.7]} 1-0

[Event "*** Titled Tuesday Blitz"]
[Site "Chess.com"]
[Date "2021.03.16"]
[Round "6"]
[White "mirochka"]
[Black "Leo_C"]
[Result "1/2-1/2"]
[WhiteElo "2240"]
[BlackElo "2414"]
[TimeControl "180+1"]
[EndTime "11:03:23 PDT"]
[Termination "Game drawn by repetition"]

1. e4 {[%clk 0:03:00.9]} 1... c6 {[%clk 0:02:59.6]} 2. d4 {[%clk 0:03:00.1]}
2... d5 {[%clk 0:02:59.5]} 3. e5 {[%clk 0:03:00.2]} 3... c5 {[%clk 0:02:59.3]}
4. dxc5 {[%clk 0:02:57.8]} 4... e6 {[%clk 0:02:59.2]} 5. Be3 {[%clk 0:02:56.4]}
5... Nh6 {[%clk 0:02:58.4]} 6. c3 {[%clk 0:02:51.4]} 6... Nf5 {[%clk 0:02:58.1]}
7. Bd4 {[%clk 0:02:46.1]} 7... Bd7 {[%clk 0:02:57]} 8. Nf3 {[%clk 0:02:40.3]}
8... Nc6 {[%clk 0:02:56.6]} 9. Bd3 {[%clk 0:02:25.6]} 9... Nfxd4 {[%clk
0:02:55.7]} 10. cxd4 {[%clk 0:02:23.1]} 10... b6 {[%clk 0:02:54.8]} 11. cxb6
{[%clk 0:01:16.8]} 11... Qxb6 {[%clk 0:02:55.7]} 12. Nc3 {[%clk 0:01:17.1]}
12... Qxb2 {[%clk 0:02:40.8]} 13. Nb5 {[%clk 0:01:12.8]} 13... Bb4+ {[%clk
0:02:37.7]} 14. Kf1 {[%clk 0:01:12]} 14... O-O {[%clk 0:02:36.4]} 15. a3 {[%clk
0:01:02.8]} 15... Be7 {[%clk 0:02:07.6]} 16. Rb1 {[%clk 0:00:46]} 16... Qa2
{[%clk 0:02:03.8]} 17. Ra1 {[%clk 0:00:44.8]} 17... Qb2 {[%clk 0:02:02.9]} 18.
Rb1 {[%clk 0:00:35.1]} 18... Qa2 {[%clk 0:02:01.4]} 19. Ra1 {[%clk 0:00:35.1]}
19... Qb2 {[%clk 0:01:57.6]} 1/2-1/2

[Event "*** Titled Tuesday Blitz"]
[Site "Chess.com"]
[Date "2021.03.16"]
[Round "6"]
[White "UCantHandleDenker"]
[Black "jacky72"]
[Result "1-0"]
[WhiteElo "2519"]
[BlackElo "2692"]
[TimeControl "180+1"]
[EndTime "11:03:27 PDT"]
[Termination "UCantHandleDenker won by checkmate"]

1. Nf3 {[%clk 0:03:00.9]} 1... Nf6 {[%clk 0:02:59.9]} 2. g3 {[%clk 0:03:00.1]}
2... g6 {[%clk 0:03:00.8]} 3. Bg2 {[%clk 0:02:59.5]} 3... Bg7 {[%clk 0:03:01.7]}
4. O-O {[%clk 0:02:59.7]} 4... O-O {[%clk 0:03:02.6]} 5. d3 {[%clk 0:03:00]}
5... d6 {[%clk 0:03:03.5]} 6. Nbd2 {[%clk 0:03:00.4]} 6... e5 {[%clk 0:03:03.3]}
7. e4 {[%clk 0:03:00.9]} 7... Nc6 {[%clk 0:03:04.2]} 8. c3 {[%clk 0:03:00.6]}
8... h6 {[%clk 0:03:05.1]} 9. b4 {[%clk 0:03:00.2]} 9... a5 {[%clk 0:03:03.4]}
10. b5 {[%clk 0:03:00]} 10... Ne7 {[%clk 0:03:04.1]} 11. a4 {[%clk 0:03:00.4]}
11... Be6 {[%clk 0:03:04]} 12. Ba3 {[%clk 0:02:59.8]} 12... Qd7 {[%clk
0:03:03.5]} 13. Re1 {[%clk 0:03:00.1]} 13... Bh3 {[%clk 0:03:03.5]} 14. d4
{[%clk 0:02:58.4]} 14... Bxg2 {[%clk 0:03:03.1]} 15. Kxg2 {[%clk 0:02:58.8]}
15... Qe6 {[%clk 0:02:57.1]} 16. Qb3 {[%clk 0:02:49.6]} 16... exd4 {[%clk
0:02:54.2]} 17. cxd4 {[%clk 0:02:42.8]} 17... Qxb3 {[%clk 0:02:53]} 18. Nxb3
{[%clk 0:02:42.1]} 18... Rfe8 {[%clk 0:02:51.3]} 19. Rac1 {[%clk 0:02:37.6]}
19... Rac8 {[%clk 0:02:48.2]} 20. Nxa5 {[%clk 0:02:29.6]} 20... Ra8 {[%clk
0:02:48.6]} 21. Nxb7 {[%clk 0:02:23.3]} 21... Rxa4 {[%clk 0:02:49.1]} 22. Rxc7
{[%clk 0:01:53.5]} 22... Rxa3 {[%clk 0:02:41.6]} 23. Nxd6 {[%clk 0:01:53.4]}
23... Rd8 {[%clk 0:02:42.3]} 24. Rxe7 {[%clk 0:01:42.7]} 24... Rxd6 {[%clk
0:02:41.9]} 25. e5 {[%clk 0:01:43.1]} 25... Rb6 {[%clk 0:02:37.5]} 26. exf6
{[%clk 0:01:41.3]} 26... Bxf6 {[%clk 0:02:38.4]} 27. Rd7 {[%clk 0:01:38.5]}
27... Rxb5 {[%clk 0:02:36]} 28. Re8+ {[%clk 0:01:27.4]} 28... Kg7 {[%clk
0:02:35.6]} 29. Ne5 {[%clk 0:01:27]} 29... Bxe5 {[%clk 0:02:35.9]} 30. dxe5
{[%clk 0:01:27.5]} 30... Ra2 {[%clk 0:02:01.6]} 31. Ree7 {[%clk 0:01:26]} 31...
g5 {[%clk 0:02:01.4]} 32. Rxf7+ {[%clk 0:01:25.4]} 32... Kg6 {[%clk 0:02:01.9]}
33. Rf6+ {[%clk 0:01:22.5]} 33... Kh5 {[%clk 0:02:02.3]} 34. h3 {[%clk
0:01:20.7]} 34... g4 {[%clk 0:02:02.6]} 35. Rg7 {[%clk 0:01:13.2]} 35... gxh3+
{[%clk 0:01:56.9]} 36. Kxh3 {[%clk 0:01:13.1]} 36... Rxf2 {[%clk 0:01:55.3]} 37.
g4# {[%clk 0:01:12]} 1-0

[Event "*** Titled Tuesday Blitz"]
[Site "Chess.com"]
[Date "2021.03.16"]
[Round "6"]
[White "Artem_Sadovsky"]
[Black "platy3"]
[Result "1-0"]
[WhiteElo "2636"]
[BlackElo "2793"]
[TimeControl "180+1"]
[EndTime "11:03:42 PDT"]
[Termination "Artem_Sadovsky won by resignation"]

1. Nf3 {[%clk 0:03:00.1]} 1... Nf6 {[%clk 0:02:58.3]} 2. c4 {[%clk 0:03:00]}
2... e6 {[%clk 0:02:57.4]} 3. b3 {[%clk 0:03:00.2]} 3... d5 {[%clk 0:02:56.7]}
4. Bb2 {[%clk 0:03:00.7]} 4... Be7 {[%clk 0:02:57]} 5. g3 {[%clk 0:03:00.7]}
5... O-O {[%clk 0:02:57.3]} 6. Bg2 {[%clk 0:03:01.3]} 6... b6 {[%clk 0:02:57.1]}
7. O-O {[%clk 0:03:01.6]} 7... Bb7 {[%clk 0:02:57.7]} 8. d3 {[%clk 0:03:02.2]}
8... c5 {[%clk 0:02:56.8]} 9. Nbd2 {[%clk 0:03:02.6]} 9... d4 {[%clk 0:02:56.9]}
10. b4 {[%clk 0:03:00.9]} 10... Nbd7 {[%clk 0:02:50.1]} 11. b5 {[%clk
0:02:55.4]} 11... Qc7 {[%clk 0:02:47]} 12. a4 {[%clk 0:02:54.9]} 12... a5 {[%clk
0:02:47.5]} 13. e4 {[%clk 0:02:39.2]} 13... dxe3 {[%clk 0:02:45.7]} 14. fxe3
{[%clk 0:02:40.1]} 14... Rad8 {[%clk 0:02:46]} 15. Qe2 {[%clk 0:02:39.3]} 15...
Rfe8 {[%clk 0:02:44.7]} 16. Ng5 {[%clk 0:02:32.5]} 16... Nf8 {[%clk 0:02:42.6]}
17. Bxb7 {[%clk 0:02:23.3]} 17... Qxb7 {[%clk 0:02:43.5]} 18. Nde4 {[%clk
0:02:23.9]} 18... Nxe4 {[%clk 0:02:40.7]} 19. Rxf7 {[%clk 0:02:09.7]} 19... Nf6
{[%clk 0:02:21]} 20. Bxf6 {[%clk 0:01:26.8]} 20... gxf6 {[%clk 0:02:18.7]} 21.
Qh5 {[%clk 0:01:23.9]} 21... fxg5 {[%clk 0:02:17.2]} 22. Raf1 {[%clk 0:01:24.6]}
22... Qb8 {[%clk 0:01:55.1]} 23. Rxh7 {[%clk 0:01:09.8]} 23... Nxh7 {[%clk
0:01:16.9]} 24. Qg6+ {[%clk 0:01:10]} 24... Kh8 {[%clk 0:01:17.4]} 25. Rf7
{[%clk 0:01:10.5]} 1-0

[Event "*** Titled Tuesday Blitz"]
[Site "Chess.com"]
[Date "2021.03.16"]
[Round "6"]
[White "Storne89"]
[Black "renehp"]
[Result "1/2-1/2"]
[WhiteElo "2616"]
[BlackElo "2470"]
[TimeControl "180+1"]
[EndTime "11:03:49 PDT"]
[Termination "Game drawn by repetition"]

1. d4 {[%clk 0:03:00.9]} 1... d5 {[%clk 0:02:58.1]} 2. c4 {[%clk 0:02:59.1]}
2... c6 {[%clk 0:02:57.2]} 3. cxd5 {[%clk 0:02:58.7]} 3... cxd5 {[%clk
0:02:58.1]} 4. Nc3 {[%clk 0:02:58.9]} 4... Nf6 {[%clk 0:02:58.5]} 5. Bf4 {[%clk
0:02:58.5]} 5... Nc6 {[%clk 0:02:58.5]} 6. e3 {[%clk 0:02:56.5]} 6... Bf5 {[%clk
0:02:56.1]} 7. Qb3 {[%clk 0:02:53.5]} 7... Qb6 {[%clk 0:02:55.7]} 8. Bb5 {[%clk
0:02:49.2]} 8... e6 {[%clk 0:02:53.8]} 9. Nf3 {[%clk 0:02:37.8]} 9... Be7 {[%clk
0:02:49.9]} 10. O-O {[%clk 0:02:30.5]} 10... O-O {[%clk 0:02:49.5]} 11. Ne5
{[%clk 0:02:26.7]} 11... Nxe5 {[%clk 0:02:45.4]} 12. dxe5 {[%clk 0:02:24.4]}
12... Ne4 {[%clk 0:02:43.9]} 13. Nxe4 {[%clk 0:02:15.5]} 13... Bxe4 {[%clk
0:02:44.8]} 14. a4 {[%clk 0:02:01.9]} 14... a6 {[%clk 0:02:32.8]} 15. Bc4 {[%clk
0:01:56.4]} 15... Qxb3 {[%clk 0:02:25.7]} 16. Bxb3 {[%clk 0:01:55.8]} 16... Rfc8
{[%clk 0:02:25.7]} 17. Rfc1 {[%clk 0:01:55.6]} 17... g5 {[%clk 0:02:24.4]} 18.
Bg3 {[%clk 0:01:54.8]} 18... Bb4 {[%clk 0:02:20.7]} 19. f3 {[%clk 0:01:53.2]}
19... Bg6 {[%clk 0:02:15.8]} 20. Kf2 {[%clk 0:01:49.5]} 20... Kf8 {[%clk
0:02:15.4]} 21. Ke2 {[%clk 0:01:47.5]} 21... Ke7 {[%clk 0:02:14.9]} 22. Be1
{[%clk 0:01:46.1]} 22... Bxe1 {[%clk 0:02:09.6]} 23. Kxe1 {[%clk 0:01:45.8]}
23... Kd7 {[%clk 0:02:06.6]} 24. Kd2 {[%clk 0:01:40.3]} 24... h5 {[%clk
0:02:05.5]} 25. h4 {[%clk 0:01:29.7]} 25... gxh4 {[%clk 0:01:53.8]} 26. Rxc8
{[%clk 0:01:26.3]} 26... Rxc8 {[%clk 0:01:53.6]} 27. Rh1 {[%clk 0:01:26.9]}
27... Rc6 {[%clk 0:01:41.9]} 28. Rxh4 {[%clk 0:01:26.3]} 28... Rb6 {[%clk
0:01:40.4]} 29. Kc3 {[%clk 0:01:26.3]} 29... Rc6+ {[%clk 0:01:40.4]} 30. Kb4
{[%clk 0:01:23.8]} 30... Rb6+ {[%clk 0:01:36.5]} 31. Kc3 {[%clk 0:01:08.2]}
31... Rc6+ {[%clk 0:01:35.9]} 32. Kd2 {[%clk 0:01:07.7]} 32... Rb6 {[%clk
0:01:35.7]} 33. Kc3 {[%clk 0:01:05.9]} 1/2-1/2

[Event "*** Titled Tuesday Blitz"]
[Site "Chess.com"]
[Date "2021.03.16"]
[Round "6"]
[White "bakki78"]
[Black "GameOverBro"]
[Result "1-0"]
[WhiteElo "2774"]
[BlackElo "2524"]
[TimeControl "180+1"]
[EndTime "11:04:03 PDT"]
[Termination "bakki78 won by resignation"]

1. e4 {[%clk 0:03:00.9]} 1... d6 {[%clk 0:02:52.7]} 2. d4 {[%clk 0:02:59.7]}
2... Nf6 {[%clk 0:02:51.4]} 3. Nc3 {[%clk 0:03:00.1]} 3... e5 {[%clk 0:02:51.4]}
4. Nge2 {[%clk 0:02:57.5]} 4... Nbd7 {[%clk 0:02:51]} 5. g3 {[%clk 0:02:57.9]}
5... c6 {[%clk 0:02:50]} 6. Bg2 {[%clk 0:02:58.1]} 6... b5 {[%clk 0:02:50.1]} 7.
a3 {[%clk 0:02:56.7]} 7... Bb7 {[%clk 0:02:44.9]} 8. O-O {[%clk 0:02:56.3]} 8...
Be7 {[%clk 0:02:44]} 9. h3 {[%clk 0:02:56]} 9... h5 {[%clk 0:02:43.5]} 10. f4
{[%clk 0:02:54.3]} 10... a5 {[%clk 0:02:43]} 11. d5 {[%clk 0:02:43.3]} 11... b4
{[%clk 0:02:39.8]} 12. dxc6 {[%clk 0:02:42.2]} 12... Bxc6 {[%clk 0:02:40.4]} 13.
Nd5 {[%clk 0:02:42.3]} 13... Nxd5 {[%clk 0:02:34]} 14. exd5 {[%clk 0:02:41.9]}
14... Bb5 {[%clk 0:02:34.6]} 15. fxe5 {[%clk 0:02:34.8]} 15... Nxe5 {[%clk
0:02:31]} 16. Re1 {[%clk 0:02:32.7]} 16... h4 {[%clk 0:02:21.5]} 17. Nd4 {[%clk
0:02:30.2]} 17... Bd7 {[%clk 0:01:50]} 18. Nc6 {[%clk 0:02:20.7]} 18... Bxc6
{[%clk 0:01:27.6]} 19. dxc6 {[%clk 0:02:18.6]} 19... Qc7 {[%clk 0:01:24.9]} 20.
axb4 {[%clk 0:02:09.8]} 20... hxg3 {[%clk 0:01:20.3]} 21. b5 {[%clk 0:01:51.8]}
21... Rb8 {[%clk 0:01:16.6]} 22. Qd5 {[%clk 0:01:48.3]} 22... Qb6+ {[%clk
0:01:14.7]} 23. Be3 {[%clk 0:01:47.4]} 23... Qxb5 {[%clk 0:01:14.9]} 24. c7
{[%clk 0:01:46.9]} 24... O-O {[%clk 0:01:03.4]} 25. cxb8=Q {[%clk 0:01:43.6]}
25... Qxb8 {[%clk 0:01:04.3]} 26. Bd4 {[%clk 0:01:41.2]} 26... Bf6 {[%clk
0:01:02]} 27. Rxa5 {[%clk 0:01:41.2]} 27... Qb4 {[%clk 0:00:58.2]} 28. Bc3
{[%clk 0:01:36.1]} 28... Qh4 {[%clk 0:00:58.2]} 29. Rf1 {[%clk 0:01:30.6]} 29...
Rc8 {[%clk 0:00:52.5]} 30. Ra8 {[%clk 0:01:29.5]} 30... Rxa8 {[%clk 0:00:49.2]}
31. Qxa8+ {[%clk 0:01:27.5]} 1-0

[Event "*** Titled Tuesday Blitz"]
[Site "Chess.com"]
[Date "2021.03.16"]
[Round "6"]
[White "SaqoChess_Twitch"]
[Black "Frolyanov_D"]
[Result "0-1"]
[WhiteElo "2491"]
[BlackElo "2676"]
[TimeControl "180+1"]
[EndTime "11:04:10 PDT"]
[Termination "Frolyanov_D won by resignation"]

1. d4 {[%clk 0:03:00.9]} 1... d5 {[%clk 0:02:55.2]} 2. e3 {[%clk 0:03:01.8]}
2... Nf6 {[%clk 0:02:49]} 3. Nf3 {[%clk 0:03:02.7]} 3... c6 {[%clk 0:02:39.2]}
4. Be2 {[%clk 0:03:03.6]} 4... Bf5 {[%clk 0:02:34.1]} 5. O-O {[%clk 0:03:04.5]}
5... h6 {[%clk 0:02:33.3]} 6. b3 {[%clk 0:03:03]} 6... e6 {[%clk 0:02:32.9]} 7.
Bb2 {[%clk 0:03:03.6]} 7... Nbd7 {[%clk 0:02:32.9]} 8. Ne5 {[%clk 0:03:04.1]}
8... Nxe5 {[%clk 0:02:28.7]} 9. dxe5 {[%clk 0:03:05]} 9... Nd7 {[%clk
0:02:29.2]} 10. f4 {[%clk 0:03:04.3]} 10... Bc5 {[%clk 0:02:24.5]} 11. Bd4
{[%clk 0:03:03.8]} 11... Be7 {[%clk 0:02:24]} 12. Nd2 {[%clk 0:03:03]} 12... Qc7
{[%clk 0:02:22.5]} 13. c4 {[%clk 0:03:02.3]} 13... O-O {[%clk 0:02:11.9]} 14.
cxd5 {[%clk 0:03:02.3]} 14... cxd5 {[%clk 0:02:04.9]} 15. Qc1 {[%clk 0:02:53.1]}
15... Qa5 {[%clk 0:02:01.4]} 16. Bc3 {[%clk 0:02:48.6]} 16... Qb6 {[%clk
0:01:59]} 17. Bd4 {[%clk 0:02:48.5]} 17... Bc5 {[%clk 0:01:58.7]} 18. Bxc5
{[%clk 0:02:43.9]} 18... Nxc5 {[%clk 0:01:58.7]} 19. Qb2 {[%clk 0:02:44.4]}
19... Na4 {[%clk 0:01:33.4]} 20. Qd4 {[%clk 0:02:44]} 20... Qxd4 {[%clk
0:01:32.6]} 21. exd4 {[%clk 0:02:44.9]} 21... Nc3 {[%clk 0:01:32.8]} 22. Kf2
{[%clk 0:02:41.6]} 22... Rac8 {[%clk 0:01:31.2]} 23. Rfc1 {[%clk 0:02:40.4]}
23... a5 {[%clk 0:01:26.7]} 24. h3 {[%clk 0:02:35.3]} 24... b5 {[%clk
0:01:24.7]} 25. g4 {[%clk 0:02:35.4]} 25... Bh7 {[%clk 0:01:24.1]} 26. Nf1
{[%clk 0:02:31.1]} 26... b4 {[%clk 0:01:23.5]} 27. Ne3 {[%clk 0:02:31.1]} 27...
f6 {[%clk 0:01:22.9]} 28. Ke1 {[%clk 0:02:17]} 28... fxe5 {[%clk 0:01:21.9]} 29.
fxe5 {[%clk 0:02:17.9]} 29... Rf4 {[%clk 0:01:19.9]} 30. a3 {[%clk 0:01:58.7]}
30... Re4 {[%clk 0:01:19.3]} 31. Kd2 {[%clk 0:01:35.2]} 31... Rxd4+ {[%clk
0:01:18.4]} 32. Ke1 {[%clk 0:01:35.4]} 32... Re4 {[%clk 0:01:18.7]} 33. Kd2
{[%clk 0:01:35.7]} 33... d4 {[%clk 0:01:18.6]} 34. axb4 {[%clk 0:01:25.6]} 34...
dxe3+ {[%clk 0:01:14.5]} 35. Ke1 {[%clk 0:01:25.6]} 35... axb4 {[%clk
0:01:13.3]} 36. Bd3 {[%clk 0:01:18.4]} 36... Rxe5 {[%clk 0:01:12.3]} 37. Bxh7+
{[%clk 0:01:19.3]} 37... Kxh7 {[%clk 0:01:12.3]} 0-1

[Event "*** Titled Tuesday Blitz"]
[Site "Chess.com"]
[Date "2021.03.16"]
[Round "6"]
[White "alexrustemov"]
[Black "JimmmyZhang"]
[Result "0-1"]
[WhiteElo "2776"]
[BlackElo "2551"]
[TimeControl "180+1"]
[EndTime "11:04:21 PDT"]
[Termination "JimmmyZhang won by resignation"]

1. d4 {[%clk 0:03:00.9]} 1... Nf6 {[%clk 0:02:59.2]} 2. c4 {[%clk 0:03:01.1]}
2... e6 {[%clk 0:02:59]} 3. Nf3 {[%clk 0:03:00.9]} 3... Bb4+ {[%clk 0:02:59.4]}
4. Bd2 {[%clk 0:03:00.9]} 4... Bxd2+ {[%clk 0:02:59.2]} 5. Qxd2 {[%clk
0:03:00.4]} 5... d5 {[%clk 0:02:59.9]} 6. e3 {[%clk 0:02:59.3]} 6... O-O {[%clk
0:02:59.4]} 7. Nc3 {[%clk 0:02:59.1]} 7... c5 {[%clk 0:02:59.5]} 8. cxd5 {[%clk
0:02:54.6]} 8... Nxd5 {[%clk 0:02:57]} 9. dxc5 {[%clk 0:02:52.3]} 9... Nf6
{[%clk 0:02:30.1]} 10. Rc1 {[%clk 0:02:46.3]} 10... Nc6 {[%clk 0:02:26.8]} 11.
a3 {[%clk 0:02:40.9]} 11... b6 {[%clk 0:02:22]} 12. Qxd8 {[%clk 0:02:39.5]}
12... Rxd8 {[%clk 0:02:21.1]} 13. cxb6 {[%clk 0:02:40.2]} 13... axb6 {[%clk
0:02:19.9]} 14. Be2 {[%clk 0:02:38.2]} 14... Bb7 {[%clk 0:02:19.4]} 15. O-O
{[%clk 0:02:37.7]} 15... Rac8 {[%clk 0:02:16.8]} 16. Rfd1 {[%clk 0:02:37.2]}
16... Rxd1+ {[%clk 0:02:11.7]} 17. Nxd1 {[%clk 0:02:29.9]} 17... Kf8 {[%clk
0:02:06.9]} 18. Kf1 {[%clk 0:02:29.5]} 18... Ke7 {[%clk 0:02:04.4]} 19. Ke1
{[%clk 0:02:29.4]} 19... Ne4 {[%clk 0:01:58.5]} 20. Nd2 {[%clk 0:02:26.6]} 20...
Nd6 {[%clk 0:01:55.9]} 21. Nc4 {[%clk 0:02:17.5]} 21... Na5 {[%clk 0:01:44.3]}
22. b3 {[%clk 0:02:01.7]} 22... Nxb3 {[%clk 0:01:43.8]} 23. Rb1 {[%clk
0:01:54.3]} 23... Nxc4 {[%clk 0:01:41.2]} 24. Rxb3 {[%clk 0:01:53.7]} 24... Bxg2
{[%clk 0:01:39.9]} 25. f3 {[%clk 0:01:45]} 25... Ne5 {[%clk 0:01:37.3]} 26. Kf2
{[%clk 0:01:38.2]} 26... Rc2 {[%clk 0:01:36.9]} 27. Rb2 {[%clk 0:01:25.8]} 27...
Nd3+ {[%clk 0:01:31.1]} 28. Kxg2 {[%clk 0:00:39.8]} 28... Nxb2 {[%clk
0:01:30.8]} 29. Kf1 {[%clk 0:00:36.6]} 29... Nxd1 {[%clk 0:01:30.5]} 30. Bxd1
{[%clk 0:00:37.3]} 30... Rxh2 {[%clk 0:01:30.5]} 31. a4 {[%clk 0:00:33]} 31...
Ra2 {[%clk 0:01:29.9]} 0-1

[Event "*** Titled Tuesday Blitz"]
[Site "Chess.com"]
[Date "2021.03.16"]
[Round "6"]
[White "Skatchkov_V"]
[Black "Forantes"]
[Result "1-0"]
[WhiteElo "2617"]
[BlackElo "2426"]
[TimeControl "180+1"]
[EndTime "11:04:23 PDT"]
[Termination "Skatchkov_V won by checkmate"]

1. c4 {[%clk 0:03:00.4]} 1... Nf6 {[%clk 0:02:58.3]} 2. Nc3 {[%clk 0:03:00.4]}
2... d5 {[%clk 0:02:57.2]} 3. d4 {[%clk 0:02:59.4]} 3... g6 {[%clk 0:02:57.1]}
4. cxd5 {[%clk 0:02:57.2]} 4... Nxd5 {[%clk 0:02:58]} 5. Nf3 {[%clk 0:02:56.9]}
5... Bg7 {[%clk 0:02:57.4]} 6. g3 {[%clk 0:02:55.6]} 6... O-O {[%clk 0:02:56.4]}
7. Bg2 {[%clk 0:02:56.2]} 7... Nc6 {[%clk 0:02:56.4]} 8. O-O {[%clk 0:02:56.4]}
8... Nb6 {[%clk 0:02:52.4]} 9. e3 {[%clk 0:02:57.1]} 9... Re8 {[%clk 0:02:51.6]}
10. Re1 {[%clk 0:02:57.3]} 10... a5 {[%clk 0:02:49.1]} 11. a3 {[%clk 0:02:54.8]}
11... e5 {[%clk 0:02:44.2]} 12. d5 {[%clk 0:02:55]} 12... Ne7 {[%clk 0:02:44.3]}
13. e4 {[%clk 0:02:55.5]} 13... Bg4 {[%clk 0:02:43]} 14. Bg5 {[%clk 0:02:51.6]}
14... f6 {[%clk 0:02:35.4]} 15. Bc1 {[%clk 0:02:48.6]} 15... c6 {[%clk
0:02:35.4]} 16. h3 {[%clk 0:02:40.3]} 16... Bxf3 {[%clk 0:02:18.5]} 17. Bxf3
{[%clk 0:02:41.2]} 17... cxd5 {[%clk 0:02:19.1]} 18. exd5 {[%clk 0:02:41.3]}
18... Nc4 {[%clk 0:02:18.5]} 19. Qb3 {[%clk 0:02:39.2]} 19... Nd6 {[%clk
0:02:18.3]} 20. Ne4 {[%clk 0:02:39.5]} 20... Nef5 {[%clk 0:02:11.1]} 21. Be3
{[%clk 0:02:32.3]} 21... Nxe3 {[%clk 0:01:48.5]} 22. Rxe3 {[%clk 0:02:33.2]}
22... f5 {[%clk 0:01:48.8]} 23. Nc5 {[%clk 0:02:30]} 23... e4 {[%clk 0:01:48.3]}
24. Ne6 {[%clk 0:02:28.4]} 24... Qf6 {[%clk 0:01:31.9]} 25. Be2 {[%clk
0:02:23.1]} 25... Rac8 {[%clk 0:01:13.7]} 26. Rd1 {[%clk 0:02:22.8]} 26... Qxb2
{[%clk 0:01:07.3]} 27. Qa4 {[%clk 0:02:22.3]} 27... Re7 {[%clk 0:00:41]} 28.
Qxa5 {[%clk 0:02:21.8]} 28... Rc2 {[%clk 0:00:36.6]} 29. Qd8+ {[%clk 0:02:19.5]}
29... Re8 {[%clk 0:00:32.6]} 30. Qxd6 {[%clk 0:02:13.3]} 30... Rxe2 {[%clk
0:00:09.9]} 31. Qd7 {[%clk 0:02:13.5]} 31... Rxe6 {[%clk 0:00:01.9]} 32. dxe6
{[%clk 0:02:13.8]} 32... Rxf2 {[%clk 0:00:02.1]} 33. Qf7+ {[%clk 0:02:13.6]}
33... Kh8 {[%clk 0:00:02.1]} 34. Rd8+ {[%clk 0:02:13.7]} 34... Bf8 {[%clk
0:00:02]} 35. Rxf8# {[%clk 0:02:14.6]} 1-0